bitfinex/quotes_SOLUSD_20220226
["timestamp","ask_amount","ask_price","bid_price","bid_amount"]
[1645882674672,58.35198097,90.999,90.951,24.4824]
[1645882674871,1.79994638,90.998,90.951,24.4824]
[1645882675577,1.745696,90.989,90.951,24.4824]
[1645882677373,1.745696,90.989,90.942,23.0494]
[1645882681374,16.5028,90.98,90.942,23.0494]
[1645882681680,1.58133333,90.979,90.942,23.0494]
[1645882682277,1.5554006,90.998,90.942,23.0494]
[1645882683579,16.5009,90.99,90.942,23.0494]
[1645882684980,54.9947,91.03,90.942,23.0494]
[1645882685184,1.52688976,91.039,90.95,15.85]
[1645882685380,1.52688976,91.039,90.951,110.4]
[1645882685582,1.52688976,91.039,90.951,2.74678921]
[1645882685785,1.52688976,91.039,90.952,7.14078921]
[1645882685982,60.1544061,91.033,90.952,7.14078921]
[1645882686583,16.495,91.03,90.96,16.4925]
[1645882687087,16.495,91.03,90.952,4.394]
[1645882687285,16.495,91.03,90.95,15.85]
[1645882688086,16.495,91.03,90.951,7.14278921]
[1645882689089,1.94087435,91.029,90.951,7.14278921]
[1645882690488,1.94087435,91.029,90.951,2.74678921]
[1645882690688,1.94087435,91.029,90.96,16.4927]
[1645882691090,1.94087435,91.029,90.961,24.9995]
[1645882691495,1.94087435,91.029,90.961,27.74628921]
[1645882691689,1.94087435,91.029,90.97,16.4905]
[1645882691893,1.67065729,91.069,90.97,15.85]
[1645882692090,1.67065729,91.069,90.971,7.14078921]
[1645882692590,1.67065729,91.069,90.972,2.74678921]
[1645882692790,1.64130816,91.067,90.973,47.5296]
[1645882693392,1.64130816,91.067,90.973,51.9236]
[1645882693591,1.96750933,91.059,90.98,16.4888]
[1645882694893,0.79151733,91.059,90.98,16.4888]
[1645882696095,16.49,91.05,90.98,16.4888]
[1645882696294,16.49,91.05,90.973,51.9236]
[1645882696894,1.45227936,91.049,90.973,47.5296]
[1645882697093,67.51227936,91.049,90.973,47.5296]
[1645882697295,75.95227936,91.049,90.973,47.5296]
[1645882697494,66.06,91.041,90.951,23.4691]
[1645882697693,66.06,91.039,90.951,23.4691]
[1645882697896,1.63953751,91.038,90.951,23.4691]
[1645882698194,1.63953751,91.038,90.952,4.394]
[1645882698599,1.63953751,91.038,90.951,23.4691]
[1645882700400,66.06,91.031,90.951,23.4691]
[1645882700597,16.4982,91.01,90.951,23.4691]
[1645882700797,55.43870021,91.009,90.951,23.4691]
[1645882702297,55.43870021,91.009,90.94,22.9496]
[1645882702298,16.4993,91.0,90.94,22.9496]
[1645882705202,16.5015,90.99,90.94,22.9496]
[1645882706623,1.6657092,90.989,90.932,23.2802]
[1645882706827,16.5037,90.98,90.932,23.2802]
[1645882707027,44.7869424,90.979,90.932,23.2802]
[1645882709334,44.7869424,90.979,90.91,39.3414]
[1645882709530,44.22252816,90.979,90.911,23.267]
[1645882709729,44.22252816,90.979,90.911,43.1366476]
[1645882709929,44.22252816,90.979,90.912,19.8696476]
[1645882711633,44.22252816,90.979,90.913,2.74678921]
[1645882712032,44.22252816,90.979,90.914,19.8696476]
[1645882713436,44.22252816,90.979,90.915,2.74678921]
[1645882713733,44.22252816,90.979,90.916,19.8696476]
[1645882714136,44.22252816,90.979,90.917,2.74678921]
[1645882714437,44.22252816,90.979,90.917,19.8696476]
[1645882715243,44.22252816,90.979,90.918,2.74678921]
[1645882715536,44.22252816,90.979,90.919,19.8696476]
[1645882715737,44.22252816,90.979,90.919,40.18666962]
[1645882715937,44.22252816,90.979,90.92,23.06381123]
[1645882716138,24.2697,90.992,90.92,42.93345883]
[1645882716340,24.2697,90.992,90.921,2.74678921]
[1645882716538,24.2697,90.992,90.921,22.61643681]
[1645882716844,24.2697,90.992,90.922,22.61643681]
[1645882717041,53.04944047,90.991,90.922,22.61643681]
[1645882717243,53.04944047,90.991,90.923,2.74678921]
[1645882717444,16.5011,90.99,90.923,2.74678921]
[1645882717639,16.5011,90.99,90.924,24.113]
[1645882718139,16.5011,90.99,90.924,26.85978921]
[1645882720245,53.04944047,90.991,90.925,40.18666962]
[1645882720644,53.04944047,90.991,90.926,56.03233977]
[1645882720844,53.04944047,90.991,90.93,15.85]
[1645882721246,53.04944047,90.991,90.931,15.84567015]
[1645882721645,53.04944047,90.991,90.932,2.74678921]
[1645882721845,53.04944047,90.991,90.932,15.84567015]
[1645882722247,53.04944047,90.991,90.933,15.84567015]
[1645882722647,53.04944047,90.991,90.934,2.74678921]
[1645882723247,53.04944047,90.991,90.935,22.7086]
[1645882723650,53.04944047,90.991,90.936,2.74678921]
[1645882726751,53.04944047,90.991,90.94,15.85]
[1645882727752,53.04944047,90.991,90.941,2.74678921]
[1645882727951,16.4987,91.01,90.941,2.74678921]
[1645882728956,52.80681229,91.009,90.941,2.74678921]
[1645882730061,16.4992,91.0,90.941,2.74678921]
[1645882731459,16.4992,91.0,90.935,22.7086]
[1645882731684,66.06,90.999,90.935,22.7086]
[1645882731880,16.5017,90.99,90.935,22.7086]
[1645882732083,45.72935005,90.989,90.935,22.7086]
[1645882732281,1.77910247,90.988,90.935,22.7086]
[1645882732781,44.18048181,90.989,90.935,22.7086]
[1645882733584,44.18048181,90.989,90.936,2.74678921]
[1645882734984,22.913,91.007,90.936,2.74678921]
[1645882735785,24.2291,91.019,90.94,16.4964]
[1645882735985,57.29979388,91.018,90.94,32.3464]
[1645882736187,57.29979388,91.018,90.941,19.1816341]
[1645882736385,57.29979388,91.018,90.942,3.05883516]
[1645882736587,57.29979388,91.018,90.942,19.19052047]
[1645882736786,57.29979388,91.018,90.943,5.40441736]
[1645882737086,57.29979388,91.018,90.944,2.74678921]
[1645882737485,57.29979388,91.018,90.95,16.494]
[1645882737884,57.29979388,91.018,90.951,25.44148921]
[1645882738285,57.29979388,91.018,90.952,2.74678921]
[1645882739187,23.0417,91.017,90.952,2.74678921]
[1645882739385,16.4974,91.01,90.952,2.74678921]
[1645882739987,16.4974,91.01,90.951,22.6947]
[1645882754109,16.4974,91.01,90.952,2.74678921]
[1645882755612,23.0417,91.017,90.952,2.74678921]
[1645882755809,23.0417,91.017,90.952,113.14678921]
[1645882756010,16.4948,91.03,90.952,113.14678921]
[1645882756011,16.4948,91.03,90.952,127.11568993]
[1645882756209,16.4948,91.03,90.953,43.97345883]
[1645882756613,16.4948,91.03,90.954,36.84533753]
[1645882756817,62.97127955,91.03,90.954,36.84533753]
[1645882757109,62.97127955,91.03,90.955,16.71568993]
[1645882757611,62.97127955,91.03,90.96,16.4928]
[1645882757835,62.97127955,91.03,90.96,32.3428]
[1645882758114,62.97127955,91.03,90.961,2.74678921]
[1645882758710,62.97127955,91.03,90.962,24.7431]
[1645882759411,62.97127955,91.03,90.963,2.74678921]
[1645882761413,62.97127955,91.03,90.963,7.14078921]
[1645882762617,25.75583198,91.029,90.963,2.74678921]
[1645882762917,25.75583198,91.029,90.962,24.7431]
[1645882762918,16.4956,91.02,90.962,24.7431]
[1645882766442,23.9089,91.029,90.963,2.74678921]
[1645882766642,23.9089,91.029,90.964,4.394]
[1645882766845,16.4935,91.04,90.964,4.394]
[1645882767044,16.4935,91.04,90.965,2.74678921]
[1645882767243,16.4935,91.04,90.966,4.394]
[1645882767444,16.4935,91.04,90.97,16.4912]
[1645882767644,52.08106113,91.039,90.971,4.394]
[1645882767845,52.08106113,91.039,90.971,7.14078921]
[1645882768144,1.76457545,91.049,90.972,2.74678921]
[1645882768345,54.9588,91.09,90.973,4.394]
[1645882768651,1.4539223,91.097,91.01,16.4838]
[1645882769246,44.15027643,91.096,91.01,16.4838]
[1645882769445,16.4847,91.08,91.011,22.5025]
[1645882769646,43.264098,91.079,91.011,22.5025]
[1645882770448,23.0092,91.098,91.012,2.74678921]
[1645882770646,23.0092,91.098,91.013,4.392]
[1645882770847,23.0092,91.098,91.013,41.94346207]
[1645882771148,23.0092,91.098,91.014,17.97985326]
[1645882771350,23.0092,91.098,91.015,4.392]
[1645882771551,58.83668722,91.097,91.015,7.13878921]
[1645882771852,58.83668722,91.097,91.016,2.74678921]
[1645882772848,16.4835,91.09,91.016,2.74678921]
[1645882773848,16.4835,91.09,91.014,15.23306405]
[1645882774049,16.4835,91.09,91.011,22.5025]
[1645882774250,67.68982492,91.089,91.011,22.5025]
[1645882774551,54.90176826,91.079,91.011,22.5025]
[1645882774752,1.58171232,91.078,91.011,22.5025]
[1645882775851,16.4892,91.07,91.011,22.5025]
[1645882776053,1.82105992,91.069,90.992,22.7088]
[1645882776254,1.82105992,91.069,90.993,4.393]
[1645882776452,1.80833049,91.075,90.993,4.393]
[1645882776656,1.80833049,91.075,90.992,22.7088]
[1645882777553,24.4743,91.077,90.992,133.1088]
[1645882777753,24.4743,91.077,91.0,16.4858]
[1645882778155,24.4743,91.077,91.004,24.1083]
[1645882778555,26.18164825,91.077,91.004,24.1083]
[1645882778757,24.4743,91.077,91.004,24.1083]
[1645882779358,26.11435484,91.077,91.004,24.1083]
[1645882779555,16.487,91.07,91.004,24.1083]
[1645882780957,1.57625928,91.069,91.004,24.1083]
[1645882781161,50.25390475,91.059,91.004,24.1083]
[1645882781562,50.25390475,91.059,90.985,4.393]
[1645882781760,24.5551,91.058,90.986,23.375]
[1645882781959,24.5551,91.058,90.987,4.394]
[1645882782160,1.57625928,91.069,90.987,4.394]
[1645882782359,55.06,91.121,90.99,15.85]
[1645882782561,24.5551,91.088,90.991,114.793]
[1645882782760,24.5551,91.088,90.992,2.73980591]
[1645882782959,24.5551,91.088,90.993,4.393]
[1645882783162,49.92168271,91.087,90.994,2.45904539]
[1645882783360,49.92168271,91.087,90.995,4.393]
[1645882783560,49.92168271,91.087,91.011,110.4]
[1645882783760,49.92168271,91.087,91.012,138.7173]
[1645882783964,49.92168271,91.087,91.012,28.3173]
[1645882784163,49.92168271,91.087,91.02,16.4808]
[1645882784367,49.92168271,91.087,91.02,32.3308]
[1645882784563,49.92168271,91.087,91.02,35.07758921]
[1645882785170,49.92168271,91.087,91.02,32.3308]
[1645882786264,49.92168271,91.087,91.021,4.393]
[1645882788165,49.92168271,91.087,91.02,32.3308]
[1645882790771,49.92168271,91.087,91.02,35.07758921]
[1645882793574,49.92168271,91.087,91.021,4.393]
[1645882793974,49.92168271,91.087,91.021,7.13978921]
[1645882799100,49.92168271,91.087,91.03,16.4804]
[1645882799701,49.92168271,91.087,91.03,19.22718921]
[1645882799901,1.73364785,91.118,91.031,24.9867]
[1645882800103,23.6799,91.119,91.031,24.9867]
[1645882800308,23.6799,91.119,91.04,16.4783]
[1645882800502,23.6799,91.119,91.04,32.3283]
[1645882800704,23.6799,91.119,91.041,113.14678921]
[1645882800900,43.87849349,91.118,91.041,113.14678921]
[1645882801102,43.87849349,91.118,91.042,137.62508921]
[1645882802505,43.87849349,91.118,91.05,16.4766]
[1645882802904,43.87849349,91.118,91.051,2.74678921]
[1645882805806,23.6799,91.119,91.051,2.74678921]
[1645882806004,16.4748,91.14,91.06,16.4748]
[1645882806202,1.7537236,91.152,91.06,16.4748]
[1645882806203,24.7441,91.139,91.06,32.3248]
[1645882806502,24.7441,91.139,91.061,41.02505326]
[1645882806905,48.14535894,91.138,91.062,17.97985326]
[1645882807304,48.14535894,91.138,91.063,2.74678921]
[1645882812511,48.14535894,91.138,91.061,23.0452]
[1645882812512,66.06,91.137,91.061,23.0452]
[1645882812710,1.6672911,91.136,91.061,23.0452]
[1645882812913,66.06,91.129,91.037,2.74678921]
[1645882813209,67.77249083,91.127,91.038,24.8618]
[1645882813411,1.68141457,91.126,91.038,24.8618]
[1645882814210,23.7358,91.128,91.04,16.4785]
[1645882814412,23.7358,91.128,91.042,2.52099498]
[1645882814814,23.7358,91.128,91.043,24.79132056]
[1645882815014,23.7358,91.128,91.045,3.07980956]
[1645882815214,23.7358,91.128,91.051,110.4]
[1645882815413,23.7358,91.128,91.053,110.4]
[1645882816016,23.7358,91.128,91.054,2.74678921]
[1645882818316,23.7358,91.128,91.055,42.78084561]
[1645882818518,23.7358,91.128,91.06,15.85]
[1645882818916,23.7358,91.128,91.061,2.74678921]
[1645882821122,23.7358,91.128,91.062,42.78084561]
[1645882821323,23.7358,91.128,91.07,16.473]
[1645882821521,23.7358,91.128,91.071,24.3902]
[1645882821821,23.7358,91.128,91.071,27.13698921]
[1645882822123,23.7358,91.128,91.072,2.74678921]
[1645882831436,48.14535894,91.138,91.072,113.14678921]
[1645882831636,48.14535894,91.138,91.08,16.4714]
[1645882831840,48.14535894,91.138,91.08,32.3214]
[1645882832036,24.3331,91.158,91.081,113.14678921]
[1645882832236,54.8954,91.2,91.083,110.4]
[1645882832433,24.2745,91.199,91.084,2.37926295]
[1645882832633,16.4674,91.19,91.11,16.4656]
[1645882832850,16.4674,91.19,91.111,23.2917]
[1645882833151,48.57076938,91.189,91.111,26.03848921]
[1645882833553,48.57076938,91.189,91.112,2.74678921]
[1645882834454,48.57076938,91.189,91.12,16.464]
[1645882837454,48.57076938,91.189,91.12,19.21078921]
[1645882837656,48.57076938,91.189,91.121,110.4]
[1645882837953,48.57076938,91.189,91.13,16.4624]
[1645882838253,24.9056,91.188,91.13,32.3124]
[1645882838856,24.9056,91.188,91.11,16.4644]
[1645882839054,24.9056,91.188,91.081,2.85619892]
[1645882839254,24.9056,91.188,91.095,2.74678921]
[1645882840054,24.9056,91.188,91.096,24.0943]
[1645882840255,24.9056,91.188,91.11,15.85]
[1645882840453,24.9056,91.188,91.111,22.7686]
[1645882842961,1.77712594,91.187,91.111,22.7686]
[1645882844063,24.9056,91.188,91.111,22.7686]
[1645882844263,24.9056,91.188,91.112,113.14678921]
[1645882844666,24.9056,91.188,91.113,2.74678921]
[1645882844867,24.9056,91.188,91.12,16.4639]
[1645882845071,24.9056,91.188,91.12,32.3139]
[1645882847968,24.9056,91.188,91.121,2.74678921]
[1645882848169,24.9056,91.188,91.122,22.7198]
[1645882848567,24.9056,91.188,91.122,25.46658921]
[1645882850768,24.9056,91.188,91.123,110.4]
[1645882851271,24.9056,91.188,91.13,16.4622]
[1645882851469,24.9056,91.188,91.14,15.85]
[1645882852068,46.60493935,91.187,91.14,15.85]
[1645882853879,46.60493935,91.187,91.131,2.74678921]
[1645882856977,24.9056,91.188,91.131,2.74678921]
[1645882857881,47.55591415,91.187,91.131,2.74678921]
[1645882859879,24.9056,91.188,91.131,2.74678921]
[1645882860079,24.9056,91.188,91.131,113.14678921]
[1645882860282,23.6354,91.202,91.14,16.4603]
[1645882860481,23.0605,91.201,91.141,23.3301]
[1645882860679,23.0605,91.201,91.141,26.07688921]
[1645882860883,23.0605,91.201,91.142,2.74678921]
[1645882861886,66.06,91.24,91.151,110.4]
[1645882861887,17.81852054,91.24,91.151,110.4]
[1645882862086,23.9789,91.239,91.161,110.4]
[1645882862279,23.9789,91.239,91.171,110.4]
[1645882862480,23.9789,91.239,91.172,133.9867]
[1645882862879,53.40564057,91.238,91.172,133.9867]
[1645882863283,53.40564057,91.238,91.173,2.74678921]
[1645882863481,53.40564057,91.238,91.18,16.4532]
[1645882863882,53.40564057,91.238,91.181,2.74678921]
[1645882866984,53.40564057,91.238,91.18,15.85]
[1645882867184,53.40564057,91.238,91.171,2.74678921]
[1645882867185,1.44431129,91.237,91.171,2.74678921]
[1645882867386,1.44431129,91.237,91.131,2.79446008]
[1645882867387,67.50431129,91.237,91.14,15.85]
[1645882867587,1.84741758,91.236,91.132,27.592]
[1645882867787,66.06,91.223,91.132,27.592]
[1645882867985,66.06,91.213,91.132,27.592]
[1645882868189,1.84695961,91.212,91.132,27.592]
[1645882868387,16.4653,91.21,91.132,27.592]
[1645882868586,61.53401101,91.209,91.132,27.592]
[1645882868786,1.60647514,91.208,91.132,27.592]
[1645882870286,67.66647514,91.208,91.132,27.592]
[1645882870486,66.06,91.199,91.132,4.385]
[1645882870686,1.73797168,91.198,91.132,4.385]
[1645882871587,16.4668,91.19,91.132,4.385]
[1645882871786,1.69147231,91.189,91.132,4.385]
[1645882872488,16.4668,91.19,91.132,4.385]
[1645882873991,1.71294239,91.189,91.132,4.385]
[1645882875992,1.62778142,91.188,91.111,22.5926]
[1645882877998,1.62778142,91.188,91.098,2.74678921]
[1645882879698,1.62778142,91.188,91.098,2.71854217]
[1645882879897,1.62778142,91.188,91.099,2.74678921]
[1645882880297,1.62778142,91.188,91.093,2.74678921]
[1645882882117,66.06,91.185,91.093,2.74678921]
[1645882882317,1.81602902,91.182,91.093,2.74678921]
[1645882882517,66.06,91.18,91.09,15.85]
[1645882882717,74.57,91.18,91.09,15.85]
[1645882882918,1.44628412,91.179,91.09,15.85]
[1645882883317,66.06,91.177,91.09,15.85]
[1645882883518,1.57278803,91.176,91.09,15.85]
[1645882883919,1.57278803,91.176,91.091,24.0057]
[1645882885020,110.4,91.174,91.079,2.74678921]
[1645882885219,16.4782,91.14,91.066,2.74678921]
[1645882885420,43.08024005,91.138,91.061,22.69]
[1645882886020,43.08024005,91.138,91.061,25.43678921]
[1645882886421,16.4781,91.12,91.061,25.43678921]
[1645882895329,43.08024005,91.138,91.062,110.4]
[1645882895531,43.08024005,91.138,91.063,2.97147288]
[1645882895734,43.08024005,91.138,91.063,113.14678921]
[1645882896032,43.08024005,91.138,91.064,19.57126947]
[1645882896434,43.08024005,91.138,91.07,16.4724]
[1645882896635,43.08024005,91.138,91.08,15.85]
[1645882896831,43.08024005,91.138,91.081,23.6947]
[1645882899033,43.08024005,91.138,91.082,2.74678921]
[1645882911052,16.4754,91.14,91.082,2.74678921]
[1645882911455,22.8635,91.139,91.082,2.74678921]
[1645882912052,52.56779663,91.138,91.082,2.74678921]
[1645882914654,52.56779663,91.138,91.081,23.6947]
[1645882915054,16.476,91.13,91.081,23.6947]
[1645882918358,16.476,91.13,91.082,2.74678921]
[1645882921668,16.476,91.13,91.081,23.6947]
[1645882922977,16.476,91.13,91.082,2.74678921]
[1645882923380,16.476,91.13,91.081,23.6947]
[1645882926180,22.8635,91.139,91.081,23.6947]
[1645882926379,22.8635,91.139,91.082,2.74678921]
[1645882927180,55.23890323,91.138,91.082,2.74678921]
[1645882929786,55.23890323,91.138,91.081,23.6947]
[1645882930183,57.05958893,91.138,91.081,23.6947]
[1645882931486,16.4759,91.13,91.081,23.6947]
[1645882954642,54.91,91.17,91.082,113.14678921]
[1645882954843,78.0391,91.229,91.082,113.14678921]
[1645882955047,24.3383,91.183,91.091,110.4]
[1645882955246,24.3383,91.183,91.093,110.4]
[1645882955442,24.3383,91.183,91.094,27.7028]
[1645882955641,52.20980825,91.182,91.094,45.61169963]
[1645882955841,52.20980825,91.182,91.095,2.74678921]
[1645882956043,52.20980825,91.182,91.096,4.388]
[1645882956244,52.20980825,91.182,91.11,15.85]
[1645882956444,52.20980825,91.182,91.111,23.3148]
[1645882957851,52.20980825,91.182,91.112,2.74678921]
[1645882958248,52.20980825,91.182,91.112,7.13478921]
[1645882958650,52.20980825,91.182,91.113,2.74678921]
[1645882959248,52.20980825,91.182,91.114,4.388]
[1645882959450,52.20980825,91.182,91.114,114.788]
[1645882959649,16.4628,91.21,91.115,20.87790607]
[1645882959849,16.4628,91.21,91.116,7.37284716]
[1645882960052,16.4628,91.21,91.12,15.85]
[1645882960249,16.4628,91.21,91.121,7.22456371]
[1645882960449,16.4628,91.21,91.13,16.4622]
[1645882960649,53.3348993,91.198,91.131,4.386]
[1645882962754,53.3348993,91.198,91.13,32.3122]
[1645882965557,76.3295993,91.198,91.13,32.3122]
[1645882965757,76.3295993,91.198,91.131,4.386]
[1645882966157,76.3295993,91.198,91.132,23.2123]
[1645882967159,76.3295993,91.198,91.13,15.85]
[1645882967160,16.4653,91.19,91.13,15.85]
[1645882967360,16.4653,91.19,91.131,22.5255]
[1645882970964,66.06,91.189,91.104,15.16211042]
[1645882971162,1.56417067,91.188,91.116,23.3423]
[1645882971764,66.06,91.186,91.116,23.3423]
[1645882971962,1.49469142,91.185,91.116,23.3423]
[1645882974564,66.06,91.184,91.091,4.388]
[1645882974765,1.37772846,91.183,91.081,23.1389]
[1645882974966,4.12451767,91.183,91.081,23.1389]
[1645882975167,2.74678921,91.182,91.081,23.1389]
[1645882975384,1.51698706,91.18,91.081,23.1389]
[1645882975584,178.20545716,91.175,91.082,4.389]
[1645882975783,178.20545716,91.175,91.081,23.1389]
[1645882975988,1.44997676,91.174,91.081,23.1389]
[1645882976286,1.86182923,91.171,91.081,23.1389]
[1645882976484,16.4736,91.15,91.081,23.1389]
[1645882976688,22.6038,91.149,91.082,4.39]
[1645882976884,22.6038,91.149,91.081,23.1389]
[1645882978587,44.71830453,91.139,91.081,23.1389]
[1645882986301,23.0428,91.138,91.081,23.1389]
[1645882989004,16.4758,91.13,91.081,23.1389]
[1645882994614,44.71830453,91.139,91.082,112.67519915]
[1645882994815,44.71830453,91.139,91.083,3.10806841]
[1645882995015,44.71830453,91.139,91.084,110.4]
[1645882995214,44.71830453,91.139,91.085,2.8651221]
[1645882996628,44.71830453,91.139,91.09,16.4688]
[1645882996823,44.71830453,91.139,91.09,32.3188]
[1645882997320,44.71830453,91.139,91.091,23.6951]
[1645883002825,1.61034738,91.138,91.072,4.39]
[1645883003026,23.321,91.138,91.073,23.1997]
[1645883004427,16.476,91.13,91.073,23.1997]
[1645883005933,52.21830453,91.139,91.075,2.67471419]
[1645883006132,44.71830453,91.139,91.08,15.85]
[1645883006332,44.71830453,91.139,91.081,2.55492361]
[1645883006534,44.71830453,91.139,91.081,5.30171282]
[1645883006732,44.71830453,91.139,91.082,2.74678921]
[1645883007334,44.71830453,91.139,91.083,22.8407]
[1645883007534,44.71830453,91.139,91.084,4.39]
[1645883007736,44.71830453,91.139,91.084,7.13678921]
[1645883007934,44.71830453,91.139,91.085,2.74678921]
[1645883008136,44.71830453,91.139,91.086,4.39]
[1645883008533,44.71830453,91.139,91.087,2.74678921]
[1645883008733,44.71830453,91.139,91.088,4.39]
[1645883009035,44.71830453,91.139,91.089,2.74678921]
[1645883010648,16.472,91.16,91.089,2.74678921]
[1645883010852,16.4649,91.19,91.091,110.4]
[1645883011148,24.5343,91.189,91.092,5.15259305]
[1645883011353,24.5343,91.189,91.094,3.11378931]
[1645883011558,24.5343,91.189,91.097,2.82209008]
[1645883011755,58.66359255,91.188,91.111,2.39809831]
[1645883011952,58.66359255,91.188,91.112,24.4388]
[1645883012350,58.66359255,91.188,91.112,27.18558921]
[1645883012549,58.66359255,91.188,91.113,2.74678921]
[1645883017352,57.66359255,91.188,91.113,2.74678921]
[1645883018453,57.66359255,91.188,91.113,113.14678921]
[1645883018656,55.06,91.231,91.113,113.14678921]
[1645883018657,1.69463146,91.25,91.121,112.97377379]
[1645883018854,5.91,91.281,91.131,110.4]
[1645883018855,1.41245548,91.268,91.131,110.4]
[1645883019055,1.41245548,91.268,91.141,110.4]
[1645883019358,1.41245548,91.268,91.151,110.4]
[1645883019553,66.06,91.266,91.16,15.85]
[1645883019753,45.5987,91.269,91.16,32.3068]
[1645883019754,53.00505216,91.249,91.16,32.3068]
[1645883019954,1.75901806,91.247,91.16,32.3068]
[1645883020155,1.75901806,91.247,91.161,22.39729315]
[1645883020556,1.75901806,91.247,91.162,22.39729315]
[1645883020960,1.75901806,91.247,91.163,22.39729315]
[1645883021156,1.75901806,91.247,91.164,23.6882]
[1645883021359,1.75901806,91.247,91.164,46.08549315]
[1645883021558,16.4575,91.24,91.165,19.65050394]
[1645883023863,16.4575,91.24,91.164,23.6882]
[1645883029068,23.6433,91.248,91.165,159.17400875]
[1645883029364,23.6433,91.248,91.172,2.8210299]
[1645883029763,23.6433,91.248,91.174,110.4]
[1645883030166,23.6433,91.248,91.175,180.51199427]
[1645883030463,53.00505216,91.249,91.181,110.4]
[1645883030663,53.00505216,91.249,91.19,15.85]
[1645883030863,53.00505216,91.249,91.191,22.5883]
[1645883038069,23.2754,91.248,91.191,22.5883]
[1645883038670,23.2754,91.248,91.192,2.74678921]
[1645883039370,23.2754,91.248,91.191,22.5883]
[1645883046877,29.9154,91.248,91.191,22.5883]
[1645883047080,1.6460051,91.247,91.191,22.5883]
[1645883047277,29.9154,91.248,91.191,22.5883]
[1645883047877,1.65336652,91.247,91.191,22.5883]
[1645883048076,1.72505871,91.247,91.191,22.5883]
[1645883048480,16.4564,91.24,91.191,22.5883]
[1645883053481,16.4564,91.24,91.15,16.4574]
[1645883053682,1.82903866,91.239,91.15,16.4574]
[1645883053884,16.461,91.22,91.151,24.939]
[1645883054085,82.27824476,91.219,91.151,24.939]
[1645883057588,16.4616,91.21,91.151,24.939]
[1645883057991,23.6922,91.209,91.151,24.939]
[1645883058389,23.6922,91.209,91.131,24.1484]
[1645883058591,1.6012913,91.208,91.132,22.986]
[1645883059091,66.06,91.199,91.115,25.78288614]
[1645883059288,66.06,91.199,91.11,15.85]
[1645883059289,66.06,91.195,91.11,15.85]
[1645883059493,1.38198047,91.194,91.11,15.85]
[1645883059890,56.49808985,91.196,91.111,5.5526575]
[1645883060292,56.49808985,91.196,91.112,28.52967535]
[1645883060496,56.49808985,91.196,91.114,110.4]
[1645883060691,56.49808985,91.196,91.113,53.28047535]
[1645883061392,56.49808985,91.196,91.113,27.49758921]
[1645883061593,16.4681,91.19,91.113,27.49758921]
[1645883062998,16.4681,91.19,91.113,24.7508]
[1645883063595,1.75863283,91.189,91.113,24.7508]
[1645883070122,1.75863283,91.189,91.114,110.4]
[1645883070322,1.75863283,91.189,91.113,24.7508]
[1645883071326,1.75863283,91.189,91.114,110.4]
[1645883072425,1.75863283,91.189,91.12,16.4642]
[1645883072625,1.75863283,91.189,91.12,32.3142]
[1645883074129,1.75863283,91.189,91.12,15.85]
[1645883075427,56.49808985,91.196,91.121,113.14678921]
[1645883075628,56.49808985,91.196,91.122,2.43009055]
[1645883075829,56.49808985,91.196,91.123,110.4]
[1645883076027,56.49808985,91.196,91.123,113.14678921]
[1645883076227,56.49808985,91.196,91.124,134.293]
[1645883076429,56.49808985,91.196,91.124,137.03978921]
[1645883076627,56.49808985,91.196,91.14,16.4605]
[1645883076829,56.49808985,91.196,91.141,24.9446]
[1645883079234,22.9313,91.229,91.151,110.4]
[1645883079431,1.41959825,91.252,91.161,110.4]
[1645883079631,1.66812976,91.27,91.171,110.4]
[1645883079832,1.66812976,91.27,91.18,15.85]
[1645883080238,52.96970497,91.269,91.18,15.85]
[1645883080939,16.4523,91.26,91.18,32.3032]
[1645883081337,24.9311,91.259,91.18,32.3032]
[1645883082539,24.9311,91.259,91.181,110.4]
[1645883082938,24.9311,91.259,91.19,16.4516]
[1645883083139,24.9311,91.259,91.191,23.7506]
[1645883088749,24.9311,91.259,91.192,110.4]